fUSD/lending_fUSD_20240121
["ID","MTS","AMOUNT","RATE_DAILY","PERIOD"]
[312430820,1705871453347,-500.0,0.00041095,31]
[312430821,1705871453358,-1094.0,0.00041095,31]
[312430822,1705871453383,-830.04,0.00041095,31]
[312430823,1705871453396,-522.13,0.00041095,31]
[312430824,1705871453407,-526.26,0.00041095,31]
[312430825,1705871453420,-500.0,0.00041095,31]
[312430826,1705871453431,-500.0,0.00041095,31]
[312430827,1705871453442,-500.0,0.00041095,5]
[312430828,1705871453453,-524.57,0.00041095,31]
[312430829,1705871453464,-500.0,0.00041095,31]
[312430830,1705871453474,-500.0,0.00041095,31]
[312430831,1705871453484,-500.0,0.00041095,31]
[312430832,1705871453495,-500.0,0.00041095,31]
[312430833,1705871453505,-501.43849056,0.00041095,31]
[312430834,1705871453516,-500.0,0.00041095,31]
[312430835,1705871453526,-500.0,0.00041095,2]
[312430836,1705871453537,-500.0,0.00041095,31]
[312430837,1705871453547,-500.0,0.00041095,31]
[312430838,1705871453557,-500.0,0.00041095,31]
[312430839,1705871453568,-500.0,0.00041095,31]
[312430840,1705871453579,-578.73,0.00041095,31]
[312430841,1705871453589,-500.0,0.00041095,31]
[312430842,1705871453600,-500.0,0.00041095,31]
[312430843,1705871453610,-500.0,0.00041095,31]
[312430844,1705871453622,-866.66,0.00041095,31]
[312430845,1705871453633,-500.0,0.00041095,31]
[312430846,1705871453645,-500.0,0.00041095,31]
[312430847,1705871453656,-500.0,0.00041095,31]
[312430848,1705871453667,-500.0,0.00041095,31]
[312430849,1705871453678,-500.0,0.00041095,31]
[312430850,1705871453689,-500.0,0.00041095,31]
[312430851,1705871453699,-500.0,0.00041095,31]
[312430852,1705871453709,-733.41,0.00041095,31]
[312430853,1705871453719,-500.0,0.00041095,31]
[312430854,1705871453729,-799.65,0.00041095,31]
[312430855,1705871453739,-500.0,0.00041095,31]
[312430856,1705871453750,-500.0,0.00041095,31]
[312430857,1705871453760,-500.0,0.00041095,31]
[312430858,1705871453770,-500.0,0.00041095,31]
[312430859,1705871453780,-503.6426192,0.00041095,31]
[312430860,1705871453790,-2091.99,0.00041095,31]
[312430861,1705871453801,-500.0,0.00041095,31]
[312430862,1705871453811,-500.0,0.00041095,31]
[312430863,1705871453821,-500.0,0.00041095,31]
[312430864,1705871453832,-500.0,0.00041095,31]
[312430865,1705871453842,-799.23,0.00041095,31]
[312430866,1705871453858,-500.0,0.00041095,31]
[312430867,1705871453868,-500.0,0.00041095,31]
[312430868,1705871453879,-500.0,0.00041095,31]
[312430869,1705871453889,-500.0,0.00041095,31]
[312430870,1705871453899,-947.21,0.00041095,31]
[312430871,1705871453910,-533.09,0.00041095,31]
[312430872,1705871453921,-500.0,0.00041095,31]
[312430873,1705871453931,-500.0,0.00041095,31]
[312430874,1705871453942,-579.1,0.00041095,31]
[312430875,1705871453953,-500.0,0.00041095,31]
[312430876,1705871453963,-500.0,0.00041095,31]
[312430877,1705871453974,-500.0,0.00041095,31]
[312430878,1705871453985,-500.0,0.00041095,31]
[312430879,1705871453995,-500.0,0.00041095,31]
[312430880,1705871454006,-1073.15,0.00041095,31]
[312430881,1705871454017,-500.0,0.00041095,31]
[312430882,1705871454028,-500.0,0.00041095,31]
[312430883,1705871454243,-739.55,0.00041095,31]
[312430884,1705871454254,-500.0,0.00041095,31]
[312430885,1705871454264,-500.0,0.00041095,31]
[312430886,1705871454274,-500.0,0.00041095,31]
[312430887,1705871454284,-500.0,0.00041095,31]
[312430888,1705871454299,-500.0,0.00041095,31]
[312430889,1705871454309,-500.0,0.00041095,31]
[312430890,1705871454319,-664.9,0.00041095,31]
[312430891,1705871454329,-500.0,0.00041095,31]
[312430892,1705871454342,-821.99,0.00041095,31]
[312430893,1705871454352,-500.0,0.00041095,31]
[312430894,1705871454362,-500.0,0.00041095,31]
[312430895,1705871454372,-500.0,0.00041095,31]
[312430896,1705871454383,-390.57660279,0.00041095,31]
[312430897,1705871454393,-1269.81,0.00041095,31]
[312430898,1705871454403,-502.61329645,0.00041095,31]
[312430899,1705871454413,-500.0,0.00041095,31]
[312430900,1705871454425,-679.83,0.00041095,31]
[312430901,1705871454435,-500.0,0.00041095,31]
[312430902,1705871454445,-500.0,0.00041095,31]
[312430903,1705871454455,-522.65,0.00041095,31]
[312430904,1705871454465,-500.0,0.00041095,31]
[312430905,1705871454475,-500.0,0.00041095,31]
[312430906,1705871454484,-500.0,0.00041095,31]
[312430907,1705871454494,-500.0,0.00041095,7]
[312430908,1705871454504,-500.0,0.00041095,31]
[312430909,1705871454514,-500.0,0.00041095,31]
[312430910,1705871454524,-500.0,0.00041095,31]
[312430911,1705871454535,-500.0,0.00041095,31]
[312430912,1705871454544,-500.0,0.00041095,31]
[312430913,1705871454554,-500.0,0.00041095,31]
[312430914,1705871454563,-500.0,0.00041095,31]
[312430915,1705871454572,-607.47,0.00041095,31]
[312430916,1705871454582,-500.0,0.00041095,31]
[312430917,1705871454592,-500.0,0.00041095,31]
[312430918,1705871454601,-500.0,0.00041095,31]
[312430919,1705871454610,-500.0,0.00041095,31]
[312430920,1705871454620,-500.0,0.00041095,31]
[312430921,1705871454629,-500.0,0.00041095,31]
[312430922,1705871454638,-828.67,0.00041095,31]
[312430923,1705871454648,-1005.26,0.00041095,31]
[312430924,1705871454657,-500.0,0.00041095,31]
[312430925,1705871454667,-500.0,0.00041095,31]
[312430926,1705871454678,-523.3,0.00041095,2]
[312430927,1705871454687,-500.0,0.00041095,31]
[312430928,1705871454697,-500.0,0.00041095,31]
[312430929,1705871454707,-500.0,0.00041095,31]
[312430930,1705871454716,-526.61506009,0.00041095,31]
[312430931,1705871454726,-1153.86,0.00041095,31]
[312430932,1705871454736,-500.0,0.00041095,31]
[312430933,1705871454746,-500.0,0.00041095,31]
[312430934,1705871454755,-500.0,0.00041095,31]
[312430935,1705871454766,-500.0,0.00041095,31]
[312430936,1705871454776,-500.0,0.00041095,31]
[312430937,1705871454786,-837.79,0.00041095,31]
[312430938,1705871454799,-500.0,0.00041095,31]
[312430939,1705871454809,-500.0,0.00041095,31]
[312430940,1705871454819,-500.0,0.00041095,31]
[312430941,1705871454828,-500.0,0.00041095,31]
[312430942,1705871454838,-500.0,0.00041095,31]
[312430943,1705871454848,-500.0,0.00041095,31]
[312430944,1705871454858,-500.0,0.00041095,31]
[312430945,1705871454868,-500.0,0.00041095,31]
[312430946,1705871454877,-500.0,0.00041095,31]
[312430947,1705871454887,-500.0,0.00041095,31]
[312430948,1705871454897,-500.0,0.00041095,31]
[312430949,1705871454907,-500.0,0.00041095,31]
[312430950,1705871454917,-500.0,0.00041095,31]
[312430951,1705871454926,-500.0,0.00041095,31]
[312430952,1705871454936,-500.0,0.00041095,31]
[312430953,1705871454945,-500.0,0.00041095,31]
[312430954,1705871454955,-500.0,0.00041095,31]
[312430955,1705871454964,-500.0,0.00041095,31]
[312430956,1705871454974,-500.0,0.00041095,31]
[312430957,1705871454983,-500.0,0.00041095,31]
[312430958,1705871454992,-500.0,0.00041095,31]
[312430959,1705871455001,-500.0,0.00041095,31]
[312430960,1705871455011,-500.0,0.00041095,31]
[312430961,1705871455021,-500.0,0.00041095,31]
[312430962,1705871455030,-500.0,0.00041095,31]
[312430963,1705871455040,-500.0,0.00041095,31]
[312430964,1705871455050,-500.0,0.00041095,31]
[312430965,1705871455059,-500.0,0.00041095,31]
[312430966,1705871455069,-500.0,0.00041095,31]
[312430967,1705871455079,-500.0,0.00041095,31]
[312430968,1705871455089,-501.23511104,0.00041095,31]
[312430969,1705871455099,-500.0,0.00041095,31]
[312430970,1705871455109,-500.0,0.00041095,31]
[312430971,1705871455119,-500.0,0.00041095,31]
[312430972,1705871455129,-586.19,0.00041095,31]
[312430973,1705871455138,-500.0,0.00041095,31]
[312430974,1705871455149,-500.0,0.00041095,31]
[312430975,1705871455158,-500.0,0.00041095,31]
[312430976,1705871455169,-182.56225824,0.00041095,31]
[312430977,1705871455179,-500.0,0.00041095,31]
[312430978,1705871455188,-500.0,0.00041095,31]
[312430979,1705871455198,-804.79,0.00041095,31]
[312430980,1705871455209,-1144.01,0.00041095,31]
[312430981,1705871455218,-500.0,0.00041095,31]
[312430982,1705871455228,-500.0,0.00041095,31]
[312430983,1705871455238,-500.0,0.00041095,31]
[312430984,1705871455248,-500.0,0.00041095,31]
[312430985,1705871455258,-500.0,0.00041095,31]
[312430986,1705871455268,-548.46055043,0.00041095,31]
[312430987,1705871455278,-646.74539455,0.00041095,31]
[312430988,1705871455287,-500.0,0.00041095,31]
[312430989,1705871455297,-500.0,0.00041095,31]
[312430990,1705871455306,-613.27,0.00041095,31]
[312430991,1705871455316,-500.0,0.00041095,31]
[312430992,1705871455325,-500.0,0.00041095,31]
[312430993,1705871455340,-500.0,0.00041095,31]
[312430994,1705871455349,-500.0,0.00041095,31]
[312430995,1705871455359,-500.0,0.00041095,31]
[312430996,1705871455370,-500.0,0.00041095,31]
[312430997,1705871455379,-500.0,0.00041095,31]
[312430998,1705871455389,-500.0,0.00041095,31]
[312430999,1705871455399,-500.0,0.00041095,31]
[312431000,1705871455410,-500.0,0.00041095,31]
[312431001,1705871455420,-500.0,0.00041095,31]
[312431002,1705871455429,-500.0,0.00041095,31]
[312431003,1705871455438,-500.0,0.00041095,31]
[312431004,1705871455448,-500.0,0.00041095,31]
[312431005,1705871455457,-500.0,0.00041095,31]
[312431006,1705871455467,-500.0,0.00041095,31]
[312431007,1705871455477,-500.0,0.00041095,31]
[312431008,1705871455487,-500.0,0.00041095,31]
[312431009,1705871455496,-500.0,0.00041095,31]
[312431010,1705871455506,-500.0,0.00041095,31]
[312431011,1705871455515,-500.0,0.00041095,31]
[312431012,1705871455525,-500.0,0.00041095,31]
[312431013,1705871455535,-500.0,0.00041095,31]
[312431014,1705871455545,-500.0,0.00041095,31]
[312431015,1705871455554,-500.0,0.00041095,20]
[312431016,1705871455563,-500.0,0.00041095,31]
[312431017,1705871455573,-500.0,0.00041095,31]
[312431018,1705871455582,-500.0,0.00041095,31]
[312431019,1705871455592,-500.0,0.00041095,31]
[312431020,1705871455601,-282.6,0.00041095,31]
[312431021,1705871455611,-500.0,0.00041095,31]
[312431022,1705871455621,-500.0,0.00041095,31]
[312431023,1705871455630,-790.35,0.00041095,31]
[312431024,1705871455639,-500.0,0.00041095,31]
[312431025,1705871455649,-500.0,0.00041095,31]
[312431026,1705871455658,-500.0,0.00041095,31]
[312431027,1705871455668,-500.0,0.00041095,31]
[312431028,1705871455678,-500.0,0.00041095,31]
[312431029,1705871455687,-500.0,0.00041095,31]
[312431030,1705871455696,-890.33,0.00041095,31]
[312431031,1705871455706,-500.0,0.00041095,31]
[312431032,1705871455716,-500.0,0.00041095,31]
[312431033,1705871455725,-500.0,0.00041095,31]
[312431034,1705871455735,-1041.17,0.00041095,31]
[312431035,1705871455744,-500.0,0.00041095,31]
[312431036,1705871455754,-500.0,0.00041095,31]
[312431037,1705871455764,-500.0,0.00041095,31]
[312431038,1705871455773,-500.0,0.00041095,31]
[312431039,1705871455783,-500.0,0.00041095,31]
[312431040,1705871455792,-500.0,0.00041095,31]
[312431041,1705871455802,-500.0,0.00041095,31]
[312431042,1705871455811,-500.0,0.00041095,31]
[312431043,1705871455821,-572.56,0.00041095,31]
[312431044,1705871455831,-569.03,0.00041095,31]
[312431045,1705871455840,-500.0,0.00041095,31]
[312431046,1705871455850,-564.02,0.00041095,31]
[312431047,1705871455859,-500.0,0.00041095,31]
[312431048,1705871455869,-3564.58,0.00041095,31]
[312431049,1705871455879,-763.79,0.00041095,31]
[312431050,1705871455889,-500.0,0.00041095,31]
[312431051,1705871455900,-6907.8,0.00041095,31]
[312431052,1705871455911,-500.0,0.00041095,31]
[312431053,1705871455922,-500.0,0.00041095,31]
[312431054,1705871455931,-500.0,0.00041095,31]
[312431055,1705871455940,-500.0,0.00041095,31]
[312431056,1705871455950,-508.29,0.00041095,31]
[312431057,1705871455961,-500.0,0.00041095,31]
[312431058,1705871455971,-500.0,0.00041095,31]
[312431059,1705871455980,-500.0,0.00041095,31]
[312431060,1705871455990,-500.0,0.00041095,31]
[312431061,1705871455999,-612.97,0.00041095,31]
[312431062,1705871456009,-500.0,0.00041095,31]
[312431063,1705871456020,-500.0,0.00041095,31]
[312431064,1705871456031,-500.0,0.00041095,31]
[312431065,1705871456041,-516.11287589,0.00041095,31]
[312431066,1705871456052,-2313.76,0.00041095,31]
[312431067,1705871456062,-500.0,0.00041095,31]
[312431068,1705871456072,-500.0,0.00041095,31]
[312431069,1705871456081,-500.0,0.00041095,31]
[312431070,1705871456092,-500.0,0.00041095,31]
[312431071,1705871456102,-648.23,0.00041095,31]
[312431072,1705871456112,-500.0,0.00041095,31]
[312431073,1705871456121,-500.0,0.00041095,31]
[312431074,1705871456131,-500.0,0.00041095,31]
[312431075,1705871456142,-500.0,0.00041095,31]
[312431076,1705871456152,-500.0,0.00041095,31]
[312431077,1705871456162,-500.0,0.00041095,31]
[312431078,1705871456172,-2365.7,0.00041095,31]
[312431079,1705871456181,-246.43303786,0.00041095,31]
[312431080,1705871456191,-500.0,0.00041095,31]
[312431081,1705871456201,-500.0,0.00041095,31]
[312431082,1705871456211,-598.51,0.00041095,31]
[312431083,1705871456221,-500.0,0.00041095,31]
[312431084,1705871456231,-7992.81,0.00041095,31]
[312431085,1705871456240,-500.0,0.00041095,31]
[312431086,1705871456250,-500.0,0.00041095,31]
[312431087,1705871456260,-500.0,0.00041095,31]
[312431088,1705871456270,-500.0,0.00041095,31]
[312431089,1705871456281,-1000.0,0.00041095,2]
[312431090,1705871456290,-500.0,0.00041095,31]
[312431091,1705871456300,-500.0,0.00041095,31]
[312431092,1705871456310,-500.0,0.00041095,31]
[312431093,1705871456321,-735.6,0.00041095,31]
[312431094,1705871456331,-541.63960974,0.00041095,31]
[312431095,1705871456343,-1019.15,0.00041095,31]
[312431096,1705871456353,-500.0,0.00041095,31]
[312431097,1705871456364,-500.0,0.00041095,31]
[312431098,1705871456373,-500.0,0.00041095,31]
[312431099,1705871456383,-500.0,0.00041095,31]
[312431100,1705871456393,-500.0,0.00041095,31]
[312431101,1705871456403,-1824.29,0.00041095,31]
[312431102,1705871456413,-4121.58,0.00041095,31]
[312431103,1705871456423,-4729.82,0.00041095,31]
[312431104,1705871456433,-500.0,0.00041095,31]
[312431105,1705871456443,-717.1,0.00041095,31]
[312431106,1705871456452,-500.0,0.00041095,31]
[312431107,1705871456462,-500.0,0.00041095,31]
[312431108,1705871456472,-500.0,0.00041095,31]
[312431109,1705871456481,-500.0,0.00041095,31]
[312431110,1705871456491,-500.0,0.00041095,31]
[312431111,1705871456500,-500.0,0.00041095,31]
[312431112,1705871456510,-500.0,0.00041095,31]
[312431113,1705871456520,-500.0,0.00041095,31]
[312431114,1705871456529,-500.0,0.00041095,31]
[312431115,1705871456539,-688.94,0.00041095,31]
[312431116,1705871456549,-551.32,0.00041095,31]
[312431117,1705871456558,-2388.05,0.00041095,31]
[312431118,1705871456567,-2072.56,0.00041095,31]
[312431119,1705871456577,-3229.22,0.00041095,31]
[312431120,1705871456587,-324.32341232,0.00041095,31]
[312431121,1705871456597,-500.0,0.00041095,31]
[312431122,1705871456607,-500.0,0.00041095,31]
[312431123,1705871456617,-500.0,0.00041095,31]
[312431124,1705871456627,-500.0,0.00041095,31]
[312431125,1705871456637,-500.0,0.00041095,31]
[312431126,1705871456647,-500.0,0.00041095,31]
[312431127,1705871456658,-500.0,0.00041095,31]
[312431128,1705871456668,-4451.68,0.00041095,31]
[312431129,1705871456677,-1373.64,0.00041095,31]
[312431130,1705871456687,-2025.04,0.00041095,31]
[312431131,1705871456697,-500.0,0.00041095,31]
[312431132,1705871456707,-500.0,0.00041095,31]
[312431133,1705871456716,-500.0,0.00041095,31]
[312431134,1705871456726,-616.86085634,0.00041095,31]
[312431135,1705871456735,-500.0,0.00041095,31]
[312431136,1705871456745,-500.0,0.00041095,31]
[312431137,1705871456754,-500.0,0.00041095,31]
[312431138,1705871456764,-1021.34,0.00041095,31]
[312431139,1705871456773,-500.0,0.00041095,31]
[312431140,1705871456783,-500.0,0.00041095,31]
[312431141,1705871456793,-500.0,0.00041095,31]
[312431142,1705871456802,-1176.05,0.00041095,31]
[312431143,1705871456812,-500.0,0.00041095,31]
[312431144,1705871456823,-2369.33,0.00041095,31]
[312431145,1705871456832,-500.0,0.00041095,31]
[312431146,1705871456841,-1213.58,0.00041095,31]
[312431147,1705871456851,-500.0,0.00041095,5]
[312431148,1705871456861,-500.0,0.00041095,31]
[312431149,1705871456871,-500.0,0.00041095,31]
[312431150,1705871456881,-500.0,0.00041095,31]
[312431151,1705871456891,-500.0,0.00041095,31]
[312431152,1705871456900,-553.77,0.00041095,31]
[312431153,1705871456910,-518.75003996,0.00041095,31]
[312431154,1705871456920,-500.0,0.00041095,31]
[312431155,1705871456932,-2910.1,0.00041095,31]
[312431156,1705871456942,-1282.24,0.00041095,31]
[312431157,1705871456951,-500.0,0.00041095,31]
[312431158,1705871456961,-500.0,0.00041095,31]
[312431159,1705871456970,-662.34,0.00041095,31]
[312431160,1705871456980,-569.09170218,0.00041095,31]
[312431161,1705871456990,-500.0,0.00041095,31]
[312431162,1705871456999,-500.0,0.00041095,31]
[312431163,1705871457009,-500.0,0.00041095,31]
[312431164,1705871457019,-1059.85,0.00041095,31]
[312431165,1705871457029,-500.0,0.00041095,31]
[312431166,1705871457038,-2421.46,0.00041095,31]
[312431167,1705871457049,-510.10240287,0.00041095,31]
[312431168,1705871457058,-1056.67,0.00041095,31]
[312431169,1705871457068,-1638.07,0.00041095,31]
[312431170,1705871457078,-500.0,0.00041095,31]
[312431171,1705871457089,-500.0,0.00041095,31]
[312431172,1705871457099,-500.0,0.00041095,31]
[312431173,1705871457111,-500.0,0.00041095,31]
[312431174,1705871457121,-500.0,0.00041095,31]
[312431175,1705871457132,-500.0,0.00041095,30]
[312431176,1705871457142,-500.0,0.00041095,31]
[312431177,1705871457152,-500.0,0.00041095,31]
[312431178,1705871457162,-7775.6,0.00041095,31]
[312431179,1705871457171,-500.0,0.00041095,31]
[312431180,1705871457182,-3940.76,0.00041095,31]
[312431181,1705871457191,-500.0,0.00041095,31]
[312431182,1705871457201,-500.0,0.00041095,31]
[312431183,1705871457211,-500.0,0.00041095,31]
[312431184,1705871457220,-502.76362198,0.00041095,31]
[312431185,1705871457231,-500.0,0.00041095,31]
[312431186,1705871457241,-500.0,0.00041095,31]
[312431187,1705871457250,-500.0,0.00041095,31]
[312431188,1705871457261,-500.0,0.00041095,31]
[312431189,1705871457271,-500.0,0.00041095,31]
[312431190,1705871457280,-1657.73,0.00041095,31]
[312431191,1705871457291,-500.0,0.00041095,31]
[312431192,1705871457300,-10435.91,0.00041095,31]
[312431193,1705871457311,-633.78,0.00041095,31]
[312431194,1705871457321,-500.0,0.00041095,31]
[312431195,1705871457332,-500.0,0.00041095,31]
[312431196,1705871457344,-500.0,0.00041095,31]
[312431197,1705871457354,-3681.15,0.00041095,31]
[312431198,1705871457363,-504.34,0.00041095,31]
[312431199,1705871457373,-500.0,0.00041095,31]
[312431200,1705871457382,-500.0,0.00041095,31]
[312431201,1705871457393,-2074.24,0.00041095,31]
[312431202,1705871457403,-500.0,0.00041095,31]
[312431203,1705871457413,-500.0,0.00041095,7]
[312431204,1705871457425,-1174.86,0.00041095,31]
[312431205,1705871457435,-503.00563862,0.00041095,31]
[312431206,1705871457445,-500.0,0.00041095,31]
[312431207,1705871457455,-978.58,0.00041095,31]
[312431208,1705871457465,-500.0,0.00041095,31]
[312431209,1705871457475,-500.0,0.00041095,31]
[312431210,1705871457485,-500.0,0.00041095,31]
[312431211,1705871457494,-12257.55,0.00041095,31]
[312431212,1705871457504,-837.56,0.00041095,31]
[312431213,1705871457513,-502.36855736,0.00041095,31]
[312431214,1705871457523,-504.14,0.00041095,31]
[312431215,1705871457532,-500.0,0.00041095,31]
[312431216,1705871457542,-1233.83,0.00041095,31]
[312431217,1705871457551,-500.0,0.00041095,31]
[312431218,1705871457561,-500.0,0.00041095,31]
[312431219,1705871457571,-574.42,0.00041095,31]
[312431220,1705871457580,-2706.93,0.00041095,31]
[312431221,1705871457590,-500.0,0.00041095,31]
[312431222,1705871457599,-500.0,0.00041095,31]
[312431223,1705871457608,-500.0,0.00041095,31]
[312431224,1705871457618,-500.0,0.00041095,31]
[312431225,1705871457627,-501.75608529,0.00041095,31]
[312431226,1705871457637,-500.0,0.00041095,31]
[312431227,1705871457647,-500.0,0.00041095,31]
[312431228,1705871457657,-706.21,0.00041095,31]
[312431229,1705871457666,-500.0,0.00041095,31]
[312431230,1705871457675,-753.98,0.00041095,31]
[312431231,1705871457685,-500.0,0.00041095,31]
[312431232,1705871457694,-500.0,0.00041095,31]
[312431233,1705871457704,-500.0,0.00041095,31]
[312431234,1705871457713,-500.0,0.00041095,31]
[312431235,1705871457723,-500.0,0.00041095,31]
[312431236,1705871457733,-500.0,0.00041095,31]
[312431237,1705871457743,-500.0,0.00041095,31]
[312431238,1705871457752,-500.0,0.00041095,31]
[312431239,1705871457762,-500.0,0.00041095,31]
[312431240,1705871457771,-500.0,0.00041095,31]
[312431241,1705871457780,-500.0,0.00041095,31]
[312431242,1705871457790,-500.0,0.00041095,31]
[312431243,1705871457799,-500.0,0.00041095,31]
[312431244,1705871457809,-1904.36,0.00041095,31]
[312431245,1705871457818,-500.0,0.00041095,31]
[312431246,1705871457828,-500.0,0.00041095,31]
[312431247,1705871457838,-500.0,0.00041095,31]
[312431248,1705871457847,-3057.49,0.00041095,31]
[312431249,1705871457857,-2361.99,0.00041095,31]
[312431250,1705871457867,-500.0,0.00041095,31]
[312431251,1705871457877,-500.0,0.00041095,31]
[312431252,1705871457887,-500.0,0.00041095,31]
[312431253,1705871457897,-500.0,0.00041095,31]
[312431254,1705871457907,-1193.21,0.00041095,31]
[312431255,1705871457917,-500.0,0.00041095,31]
[312431256,1705871457927,-500.0,0.00041095,31]
[312431257,1705871457937,-5228.61,0.00041095,31]
[312431258,1705871457947,-501.55,0.00041095,31]
[312431259,1705871457957,-500.0,0.00041095,31]
[312431260,1705871457966,-500.0,0.00041095,31]
[312431261,1705871457976,-501.90531653,0.00041095,31]
[312431262,1705871457985,-673.47,0.00041095,31]
[312431263,1705871457995,-500.0,0.00041095,31]
[312431264,1705871458006,-500.0,0.00041095,31]
[312431265,1705871458015,-430.74350655,0.00041095,31]
[312431266,1705871458026,-500.0,0.00041095,31]
[312431267,1705871458036,-706.05,0.00041095,31]
[312431268,1705871458046,-2736.65,0.00041095,31]
[312431269,1705871458055,-500.0,0.00041095,31]
[312431270,1705871458065,-1933.78,0.00041095,31]
[312431271,1705871458075,-500.96307778,0.00041095,31]
[312431272,1705871458085,-574.77,0.00041095,31]
[312431273,1705871458095,-2095.74,0.00041095,31]
[312431274,1705871458105,-1129.43,0.00041095,31]
[312431275,1705871458115,-1030.15,0.00041095,31]
[312431276,1705871458125,-2123.7,0.00041095,31]
[312431277,1705871458135,-500.0,0.00041095,31]
[312431278,1705871458145,-511.81768729,0.00041095,31]
[312431279,1705871458154,-500.0,0.00041095,31]
[312431280,1705871458164,-757.56,0.00041095,31]
[312431281,1705871458174,-500.0,0.00041095,31]
[312431282,1705871458184,-500.0,0.00041095,31]
[312431283,1705871458194,-510.24489245,0.00041095,31]
[312431284,1705871458203,-4409.24,0.00041095,31]
[312431285,1705871458213,-184.35116985,0.00041095,31]
[312431286,1705871458223,-500.0,0.00041095,31]
[312431287,1705871458233,-549.21669941,0.00041095,31]
[312431288,1705871458243,-500.0,0.00041095,7]
[312431289,1705871458253,-500.0,0.00041095,31]
[312431290,1705871458263,-500.0,0.00041095,31]
[312431291,1705871458273,-500.0,0.00041095,31]
[312431292,1705871458283,-529.63491127,0.00041095,31]
[312431293,1705871458293,-500.0,0.00041095,31]
[312431294,1705871458303,-684.66,0.00041095,31]
[312431295,1705871458314,-500.0,0.00041095,31]
[312431296,1705871458324,-500.0,0.00041095,31]
[312431297,1705871458334,-1624.83,0.00041095,31]
[312431298,1705871458347,-612.11,0.00041095,31]
[312431299,1705871458357,-515.71070518,0.00041095,31]
[312431300,1705871458366,-2380.48,0.00041095,31]
[312431301,1705871458377,-500.0,0.00041095,31]
[312431302,1705871458387,-500.0,0.00041095,31]
[312431303,1705871458397,-3071.97,0.00041095,31]
[312431304,1705871458407,-500.0,0.00041095,31]
[312431305,1705871458418,-2546.42,0.00041095,31]
[312431306,1705871458428,-1285.05,0.00041095,31]
[312431307,1705871458439,-500.0,0.00041095,31]
[312431308,1705871458591,-2297.31,0.00041095,31]
[312431309,1705871458613,-500.0,0.00041095,31]
[312431310,1705871458623,-500.0,0.00041095,31]
[312431311,1705871458633,-530.4817708,0.00041095,31]
[312431312,1705871458643,-1012.66,0.00041095,31]
[312431313,1705871458653,-500.0,0.00041095,31]
[312431314,1705871458662,-2124.24,0.00041095,31]
[312431315,1705871458672,-500.0,0.00041095,31]
[312431316,1705871458681,-500.0,0.00041095,31]
[312431317,1705871458691,-802.71,0.00041095,31]
[312431318,1705871458701,-500.0,0.00041095,31]
[312431319,1705871458711,-500.0,0.00041095,31]